bitfinex/quotes_BTCUSD_20250123
["timestamp","ask_amount","ask_price","bid_price","bid_amount"]
[1737612289513,0.06074247,102560.0,102550.0,0.42545933]
[1737612289737,0.01,102560.0,102550.0,0.47095933]
[1737612289965,0.0291729,102560.0,102550.0,0.58043554]
[1737612290165,0.01,102560.0,102550.0,1.54859354]
[1737612290389,0.01,102560.0,102550.0,1.52067154]
[1737612290611,0.01,102560.0,102550.0,1.35870654]
[1737612291090,0.0291729,102560.0,102550.0,1.35870654]
[1737612291512,0.0291729,102560.0,102550.0,1.28901654]
[1737612291771,0.0291729,102560.0,102550.0,1.27390654]
[1737612296339,0.0293154,102560.0,102550.0,1.28349516]
[1737612296566,0.0293154,102560.0,102550.0,1.11471616]
[1737612297060,0.0293154,102560.0,102550.0,0.86728816]
[1737612297307,0.0293154,102560.0,102550.0,0.78813016]
[1737612297536,0.0293154,102560.0,102550.0,0.75927616]
[1737612298505,0.0293154,102560.0,102550.0,0.74562816]
[1737612302995,0.0293154,102560.0,102550.0,0.73603954]
[1737612303199,0.0293154,102560.0,102550.0,0.50857554]
[1737612304337,0.0293154,102560.0,102550.0,0.70412354]
[1737612304585,0.03005787,102560.0,102550.0,0.66361754]
[1737612305567,0.03005787,102560.0,102550.0,0.61811754]
[1737612305789,0.08005787,102560.0,102550.0,0.50864133]
[1737612305984,0.06088497,102560.0,102550.0,0.35359933]
[1737612306231,0.06088497,102560.0,102550.0,0.34515933]
[1737612306435,0.60288497,102560.0,102550.0,0.34515933]
[1737612306618,0.6021425,102560.0,102550.0,0.34515933]
[1737612307393,0.5521425,102560.0,102550.0,0.34515933]
[1737612307621,0.6308425,102560.0,102550.0,0.19515933]
[1737612311230,0.0888425,102560.0,102550.0,0.19515933]
[1737612311443,0.08958497,102560.0,102550.0,0.19515933]
[1737612312390,0.11258497,102560.0,102550.0,0.09781204]
[1737612312518,0.16098497,102560.0,102550.0,0.09781204]
[1737612313332,0.27848797,102560.0,102550.0,0.09781204]
[1737612313562,0.2777455,102560.0,102550.0,0.09781204]
[1737612319988,0.38722171,102560.0,102550.0,0.00029904]
[1737612320198,0.43722171,102560.0,102550.0,0.00029904]
[1737612320395,0.38722171,102560.0,102550.0,0.00029904]
[1737612320619,0.43722171,102560.0,102550.0,0.00029904]
[1737612321144,0.68722171,102560.0,102550.0,0.00029904]
[1737612325182,0.43722171,102560.0,102550.0,0.00029904]
[1737612328622,0.38722171,102560.0,102550.0,0.00029904]
[1737612328899,0.43722171,102560.0,102550.0,0.00029904]
[1737612330112,0.42972171,102560.0,102550.0,0.00029904]
[1737612331191,0.67972171,102560.0,102550.0,0.00029904]
[1737612332028,0.67972171,102560.0,102550.0,0.00346973]
[1737612332210,0.42972171,102560.0,102550.0,0.00029904]
[1737612332551,0.42977183,102560.0,102550.0,0.00029904]
[1737612332955,0.42977183,102560.0,102550.0,0.00347195]
[1737612333225,0.37977183,102560.0,102550.0,0.00347195]
[1737612334065,0.42977183,102560.0,102550.0,0.00347195]
[1737612334197,0.37977183,102560.0,102550.0,0.00347195]
[1737612336675,0.40977183,102560.0,102550.0,0.00347195]
[1737612336884,0.68612534,102560.0,102550.0,0.00347195]
[1737612337096,0.93612534,102560.0,102550.0,0.00347195]
[1737612337758,0.85711912,102560.0,102550.0,0.00347195]
[1737612338217,0.90711912,102560.0,102550.0,0.00347195]
[1737612338893,0.85711912,102560.0,102550.0,0.00347195]
[1737612345990,0.94371865,102560.0,102550.0,0.00347195]
[1737612347494,0.97371865,102560.0,102550.0,0.00347195]
[1737612348213,1.07106594,102560.0,102550.0,0.00347195]
[1737612350972,0.97371865,102560.0,102550.0,0.00347195]
[1737612353728,1.00804286,102560.0,102550.0,0.00347195]
[1737612356120,1.07994307,102560.0,102550.0,0.00347195]
[1737612357727,0.92144333,102560.0,102550.0,0.00347195]
[1737612358227,0.99334354,102560.0,102550.0,0.00347195]
[1737612358434,1.01384465,102560.0,102550.0,0.00347195]
[1737612358656,1.81024444,102560.0,102550.0,0.00347195]
[1737612359076,1.78974333,102560.0,102550.0,0.00347195]
[1737612359543,1.86164354,102560.0,102550.0,0.00347195]
[1737612362339,0.99334354,102560.0,102550.0,0.00347195]
[1737612363010,0.99334354,102560.0,102530.0,0.00029904]
[1737612363011,0.26842221,102540.0,102530.0,0.00029904]
[1737612363226,0.50352013,102540.0,102530.0,0.00029904]
[1737612363435,0.57542034,102540.0,102530.0,0.00029904]
[1737612363647,0.72542034,102540.0,102530.0,0.00029904]
[1737612364077,0.77162034,102540.0,102530.0,0.00029904]
[1737612364523,0.58766971,102540.0,102530.0,0.00029904]
[1737612365165,0.83766971,102540.0,102530.0,0.00029904]
[1737612368994,0.9251689,102540.0,102530.0,0.00029904]
[1737612370374,0.94505294,102540.0,102530.0,0.00029904]
[1737612370575,0.76905294,102540.0,102530.0,0.00401995]
[1737612370777,0.76905294,102540.0,102530.0,0.00029904]
[1737612370975,0.76905294,102540.0,102530.0,0.00402]
[1737612372067,0.86640023,102540.0,102530.0,0.00402]
[1737612373001,0.86640023,102540.0,102530.0,0.00029904]
[1737612373205,0.86640023,102540.0,102530.0,0.00402585]
[1737612373349,1.02620091,102540.0,102530.0,0.00029904]
[1737612373548,0.93870172,102540.0,102530.0,0.0040259]
[1737612373760,1.01600172,102540.0,102530.0,0.00029904]
[1737612374258,1.01600172,102540.0,102530.0,0.00402612]
[1737612374468,0.96600172,102540.0,102530.0,0.00402612]
[1737612375043,0.86865443,102540.0,102530.0,0.00402612]
[1737612376635,0.71945422,102540.0,102530.0,0.00402612]
[1737612376809,0.27968472,102540.0,102530.0,0.22785812]
[1737612377180,0.52023162,102560.0,102540.0,0.371852]
[1737612377382,0.38711083,102560.0,102550.0,0.047]
[1737612377590,0.60901104,102560.0,102550.0,0.04981503]
[1737612377987,0.63201104,102560.0,102550.0,0.04981503]
[1737612378371,0.60901104,102560.0,102550.0,0.04981503]
[1737612378735,0.58003071,102560.0,102550.0,0.04981503]
[1737612378948,0.62893092,102560.0,102550.0,0.04981503]
[1737612379389,0.66182187,102560.0,102550.0,0.04981503]
[1737612379601,0.58992166,102560.0,102550.0,0.04981503]
[1737612379826,0.47754029,102560.0,102550.0,0.04981503]
[1737612381999,0.36802145,102560.0,102550.0,0.04981503]
[1737612382595,0.39802145,102560.0,102550.0,0.04981503]
[1737612383025,0.39802145,102560.0,102550.0,0.14732803]
[1737612383594,0.39802145,102560.0,102550.0,0.04981503]
[1737612384285,0.50754029,102560.0,102550.0,0.04981503]
[1737612385778,0.48762041,102560.0,102550.0,0.14732803]
[1737612385993,0.48762041,102560.0,102550.0,0.04981503]
[1737612386997,0.48762041,102560.0,102550.0,0.14732803]
[1737612387925,0.48762041,102560.0,102550.0,0.04981503]
[1737612390341,0.48762041,102560.0,102550.0,0.14732803]
[1737612390556,0.48762041,102560.0,102550.0,0.04981503]
[1737612398103,0.48762041,102560.0,102550.0,0.05011428]
[1737612398311,0.37810157,102560.0,102550.0,0.05011428]
[1737612398543,0.37810157,102560.0,102550.0,0.14762728]
[1737612398876,0.37810157,102560.0,102550.0,0.05011428]
[1737612401663,0.48762041,102560.0,102550.0,0.05011428]
[1737612401880,0.4499752,102560.0,102550.0,0.05011428]
[1737612402748,0.52184883,102560.0,102550.0,0.00311428]
[1737612402998,0.50184883,102560.0,102550.0,0.00311428]
[1737612404864,0.4299752,102560.0,102550.0,0.00311428]
[1737612405084,0.75184883,102560.0,102550.0,0.00311428]
[1737612407227,0.6799752,102560.0,102550.0,0.00311428]
[1737612408227,0.75184883,102560.0,102550.0,0.00311428]
[1737612408578,0.6799752,102560.0,102550.0,0.00311428]
[1737612409233,0.4299752,102560.0,102550.0,0.00311428]
[1737612410054,0.50184883,102560.0,102550.0,0.00311428]
[1737612410284,0.6799752,102560.0,102550.0,0.00311428]
[1737612411997,0.98633957,102560.0,102550.0,0.00311428]
[1737612412612,0.89919612,102560.0,102550.0,0.00311428]
[1737612412820,0.97849612,102560.0,102550.0,0.00311428]
[1737612422275,0.72849612,102560.0,102550.0,0.00311428]
[1737612423196,1.06596615,102560.0,102550.0,0.00311428]
[1737612423604,1.21596615,102560.0,102550.0,0.00311428]
[1737612424803,1.23377944,102560.0,102550.0,0.00311428]
[1737612425253,1.21596615,102560.0,102550.0,0.00311428]
[1737612429662,1.16596615,102560.0,102550.0,0.00311428]
[1737612430308,1.23783978,102560.0,102550.0,0.00311428]
[1737612431925,1.16596615,102560.0,102550.0,0.00311428]
[1737612432359,1.23783978,102560.0,102550.0,0.00311428]
[1737612432563,1.26331344,102560.0,102550.0,0.00311428]
[1737612432777,1.33518707,102560.0,102550.0,0.00311428]
[1737612432984,1.16596615,102560.0,102550.0,0.00311428]
[1737612433189,0.91596615,102560.0,102550.0,0.00311428]
[1737612434161,0.82849612,102560.0,102550.0,0.00311428]
[1737612434361,1.07849612,102560.0,102550.0,0.00311428]
[1737612435687,0.97849612,102560.0,102550.0,0.00311428]
[1737612435858,0.39008657,102560.0,102550.0,0.22612728]
[1737612436043,0.29258357,102560.0,102550.0,0.22612728]
[1737612436250,0.04258357,102560.0,102550.0,0.22612728]
[1737612436468,0.2349602,102560.0,102550.0,0.22612728]
[1737612436670,0.2119602,102560.0,102550.0,0.22612728]
[1737612437309,0.2349602,102560.0,102550.0,0.22612728]
[1737612437791,0.16308657,102560.0,102550.0,0.22612728]
[1737612437981,0.2349602,102560.0,102550.0,0.22612728]
[1737612440001,0.1374572,102560.0,102550.0,0.22612728]
[1737612441252,0.06558357,102560.0,102550.0,0.22612728]
[1737612441428,0.16308657,102560.0,102550.0,0.22612728]
[1737612441626,0.06558357,102560.0,102550.0,0.22612728]
[1737612443410,0.11558357,102560.0,102550.0,0.22612728]
[1737612443627,0.02186552,102560.0,102550.0,0.5453482]
[1737612443837,0.02186552,102560.0,102550.0,1.6245612]
[1737612444062,0.00269262,102560.0,102550.0,1.2554832]
[1737612444761,0.00269262,102560.0,102550.0,1.32735683]
[1737612444973,0.10401452,102570.0,102560.0,0.36965026]
[1737612445184,0.10401452,102570.0,102560.0,1.52305455]
[1737612445384,0.10401452,102570.0,102560.0,0.78070013]
[1737612445807,0.10401452,102570.0,102560.0,0.74636661]
[1737612446217,0.10392578,102570.0,102560.0,0.74636661]
[1737612448218,0.10392578,102570.0,102560.0,0.85578035]
[1737612448421,0.01637013,102570.0,102560.0,1.00578035]
[1737612449065,0.01637013,102570.0,102560.0,0.89636661]
[1737612449430,0.01637013,102570.0,102560.0,0.9060974]
[1737612449677,0.01637013,102570.0,102560.0,0.5951824]
[1737612449855,0.01637013,102570.0,102560.0,1.4330804]
[1737612451127,0.0001423,102590.0,102580.0,0.373484]
[1737612451305,0.00019243,102590.0,102580.0,1.19476045]
[1737612451543,0.00019243,102590.0,102580.0,1.17519645]
[1737612452222,0.00019243,102590.0,102580.0,0.97860245]
[1737612452507,0.01936533,102590.0,102580.0,0.58300845]
[1737612453525,0.06936533,102590.0,102580.0,0.58300845]
[1737612455130,0.06936533,102590.0,102580.0,0.59132845]
[1737612456092,0.01936533,102590.0,102580.0,0.59132845]
[1737612456299,0.06936533,102590.0,102580.0,0.59132845]
[1737612456532,0.00019243,102590.0,102580.0,0.76245345]
[1737612458478,0.00019243,102590.0,102580.0,0.78763743]
[1737612458703,4.3e-07,102590.0,102580.0,0.81455654]
[1737612458915,4.3e-07,102590.0,102580.0,0.75367238]
[1737612459668,0.0001423,102600.0,102590.0,2.45764669]
[1737612459890,0.0001423,102600.0,102590.0,2.55499398]
[1737612460147,0.0001425,102610.0,102600.0,0.3756921]
[1737612460148,8e-07,102610.0,102600.0,0.3756921]
[1737612460375,9.2e-07,102610.0,102600.0,3.66616422]
[1737612460589,0.0001423,102630.0,102620.0,0.374846]
[1737612460799,0.00019241,102630.0,102620.0,3.15594288]
[1737612461028,0.00019241,102630.0,102620.0,0.72122032]
[1737612461257,0.00019241,102630.0,102620.0,3.16361842]
[1737612461500,4.1e-07,102630.0,102620.0,3.1888024]
[1737612461737,4.1e-07,102630.0,102620.0,0.7472314]
[1737612462374,9e-07,102640.0,102630.0,2.19426667]
[1737612462589,0.00050211,102640.0,102630.0,0.74394196]
[1737612462797,0.00050211,102640.0,102630.0,0.7472224]
[1737612463095,0.00050211,102640.0,102630.0,0.7463953]
[1737612463309,0.00050211,102640.0,102630.0,1.10292221]
[1737612464198,0.00050211,102640.0,102630.0,0.98518847]
[1737612464407,0.0148582,102650.0,102630.0,0.74915147]
[1737612464610,0.01490828,102650.0,102640.0,0.49903803]
[1737612464810,5.008e-05,102650.0,102640.0,0.64903803]
[1737612465024,5.008e-05,102650.0,102640.0,0.65231847]
[1737612466941,0.05005008,102650.0,102640.0,0.65231847]
[1737612468634,0.05019248,102650.0,102640.0,0.65231847]
[1737612469252,0.05019248,102650.0,102640.0,0.66063847]
[1737612470531,0.023,102660.0,102640.0,0.56321147]
[1737612470752,0.023,102660.0,102650.0,0.097415]
[1737612470945,0.023,102660.0,102650.0,0.38959729]
[1737612471155,0.023,102660.0,102650.0,0.39233099]
[1737612471481,0.023,102660.0,102650.0,0.19749599]
[1737612473026,0.03288603,102660.0,102650.0,0.19749599]
[1737612474751,0.0336285,102660.0,102650.0,0.19749599]
[1737612475306,0.30925024,102660.0,102650.0,0.0027337]
[1737612475483,0.38380777,102660.0,102650.0,0.00343248]
[1737612475724,0.38380777,102660.0,102630.0,0.442291]
[1737612475725,0.023,102640.0,102630.0,0.442291]
[1737612475962,0.023,102640.0,102630.0,0.19482637]
[1737612476160,0.02374247,102640.0,102630.0,0.19482637]
[1737612476624,0.02374247,102640.0,102630.0,0.09748708]
[1737612476823,0.12116947,102640.0,102630.0,5.008e-05]
[1737612478016,0.25058321,102640.0,102630.0,5.008e-05]
[1737612478225,0.29864074,102640.0,102630.0,5.008e-05]
[1737612478427,0.37394074,102640.0,102630.0,5.008e-05]
[1737612480961,0.37394074,102640.0,102630.0,0.00034891]
[1737612481502,0.37394074,102640.0,102630.0,0.00028814]
[1737612482952,0.38365113,102640.0,102630.0,0.00028814]
[1737612483381,0.33485113,102640.0,102630.0,0.00028814]
[1737612483621,0.22543739,102640.0,102630.0,0.00028814]
[1737612483850,0.023,102640.0,102630.0,0.09772514]
[1737612486100,0.01999394,102640.0,102630.0,0.09772514]
[1737612486681,0.11742094,102640.0,102630.0,0.09772514]
[1737612487393,0.11816341,102640.0,102630.0,0.09772514]
[1737612487774,0.01999394,102640.0,102630.0,0.09772514]
[1737612488194,0.00990149,102650.0,102640.0,0.097427]
[1737612488750,0.03290149,102650.0,102640.0,0.097427]
[1737612489172,0.32589996,102650.0,102640.0,0.097427]
[1737612489374,0.32515749,102650.0,102640.0,0.097427]
[1737612489789,0.13031949,102650.0,102640.0,0.097427]
[1737612490002,0.13106196,102650.0,102640.0,0.097427]
[1737612490418,0.023,102640.0,102630.0,0.29257714]
[1737612490619,0.023,102640.0,102630.0,0.29603012]
[1737612491324,0.120427,102640.0,102630.0,0.00374112]
[1737612491655,0.14116947,102640.0,102630.0,0.00374112]
[1737612492852,0.14131187,102640.0,102630.0,0.00374112]
[1737612493056,0.33122561,102640.0,102630.0,0.00374112]
[1737612493261,0.36048314,102640.0,102630.0,0.00374112]
[1737612494369,0.61048314,102640.0,102630.0,0.00374112]
[1737612495389,0.93318314,102640.0,102630.0,0.00374112]
[1737612495652,1.18053043,102640.0,102630.0,0.00374112]
[1737612495859,1.28944417,102640.0,102630.0,0.00374112]
[1737612496065,1.18003043,102640.0,102630.0,0.00374112]
[1737612496268,1.18003043,102640.0,102630.0,0.00028814]
[1737612496883,1.18003043,102640.0,102630.0,0.00374896]
[1737612497098,1.27737772,102640.0,102630.0,0.00028814]
[1737612497313,1.38679146,102640.0,102630.0,0.00374896]
[1737612497517,1.38679146,102640.0,102630.0,0.00028814]
[1737612497726,1.28944417,102640.0,102630.0,0.00375383]
[1737612497982,0.023,102600.0,102590.0,0.442401]
[1737612498212,0.120465,102600.0,102590.0,0.00050121]
[1737612498417,0.23062121,102600.0,102590.0,0.00050121]
[1737612498631,0.097459,102610.0,102600.0,0.097465]
[1737612498839,0.12120147,102610.0,102600.0,0.097465]
[1737612500025,0.023,102610.0,102600.0,0.097465]
[1737612500232,0.023,102610.0,102600.0,0.178265]
[1737612501716,0.023,102610.0,102600.0,0.097465]
[1737612504196,0.02374247,102610.0,102600.0,0.097465]
[1737612504410,0.12119847,102610.0,102600.0,0.097465]
[1737612505032,0.13087171,102610.0,102600.0,0.097425]
[1737612505655,0.13087171,102610.0,102600.0,0.10090366]
[1737612506208,0.03341571,102610.0,102600.0,0.10090366]
[1737612506412,0.03267324,102610.0,102600.0,0.10090366]
[1737612507401,0.03341571,102610.0,102600.0,0.10090366]
[1737612507751,0.13087171,102610.0,102600.0,0.10090366]
[1737612508545,0.03267324,102610.0,102600.0,0.10090366]
[1737612511174,0.0148582,102610.0,102600.0,0.5375393]
[1737612511411,0.5728424,102630.0,102620.0,0.097446]
[1737612511650,0.5728424,102630.0,102620.0,0.10092186]
[1737612511866,0.5958424,102630.0,102620.0,0.10092186]
[1737612512076,0.3458424,102630.0,102620.0,0.10092186]
[1737612512289,0.3228424,102630.0,102620.0,0.10092186]
[1737612512937,0.3458424,102630.0,102620.0,0.10092186]
[1737612514765,0.3228424,102630.0,102620.0,0.19826915]
[1737612516381,0.0001424,102630.0,102620.0,0.19826915]
[1737612517831,0.0231424,102630.0,102620.0,0.19826915]
[1737612518053,0.02388487,102630.0,102620.0,0.10092186]
[1737612518270,0.0231424,102630.0,102620.0,0.10092186]
[1737612522301,0.37233561,102630.0,102620.0,0.00347586]
[1737612522511,0.46894043,102630.0,102620.0,0.00347586]
[1737612522716,0.120456,102610.0,102600.0,0.29267404]
[1737612523508,0.023,102610.0,102600.0,0.29267404]
[1737612523661,0.12119847,102610.0,102600.0,0.29267404]
[1737612523858,0.120456,102610.0,102600.0,0.09775604]
[1737612524945,0.12119847,102610.0,102600.0,0.09775604]
[1737612526495,0.023,102610.0,102600.0,0.09775604]
[1737612526902,0.120456,102610.0,102600.0,0.09775604]
[1737612527735,0.12998152,102610.0,102600.0,0.09775604]
[1737612527951,0.13072399,102610.0,102600.0,0.09775604]
[1737612528566,0.13086639,102610.0,102600.0,0.09775604]
[1737612532220,0.03266792,102610.0,102600.0,0.09775604]
[1737612533720,0.13086639,102610.0,102600.0,0.09775604]
[1737612535678,0.13086639,102610.0,102600.0,0.10065437]
[1737612536899,0.20676639,102610.0,102600.0,0.10065437]
[1737612537388,0.20676639,102610.0,102600.0,0.10066237]
[1737612541604,0.20676639,102610.0,102600.0,0.00319737]
[1737612541810,0.20676639,102610.0,102600.0,0.10066237]
[1737612543008,0.20676639,102610.0,102600.0,0.00319737]
[1737612543207,0.33618013,102610.0,102600.0,0.00319737]
[1737612543474,0.33543766,102610.0,102600.0,0.00319737]
[1737612543681,0.24582252,102610.0,102600.0,0.00319737]
[1737612546093,0.77172252,102610.0,102600.0,0.00319737]
[1737612548575,0.75192392,102610.0,102600.0,0.00319737]
[1737612548995,0.55856792,102610.0,102600.0,0.00319737]
[1737612549200,0.55856792,102610.0,102600.0,0.10066237]
[1737612549430,0.55856792,102610.0,102600.0,0.44039802]
[1737612549431,0.5409006,102610.0,102600.0,0.44039802]
[1737612549638,0.5409006,102610.0,102600.0,0.4394234]
[1737612549843,0.5409006,102610.0,102600.0,0.6646734]
[1737612550078,0.5260424,102610.0,102600.0,0.6646734]
[1737612550291,0.0001424,102610.0,102600.0,0.8146734]
[1737612551185,0.0001424,102610.0,102600.0,0.6897234]
[1737612551392,0.0150006,102610.0,102600.0,0.48000966]
[1737612554576,0.0001424,102610.0,102600.0,0.5894234]
[1737612555836,0.0001424,102610.0,102600.0,1.5218414]
[1737612556854,0.0001424,102610.0,102600.0,0.62114566]
[1737612557016,0.0001424,102610.0,102600.0,0.48000966]
[1737612557215,0.0001424,102610.0,102600.0,0.76259266]
[1737612557762,0.0001424,102610.0,102600.0,0.8720064]
[1737612563343,0.0001424,102610.0,102600.0,0.8407444]
[1737612563554,0.0001424,102610.0,102600.0,0.8491044]
[1737612565224,0.0001424,102610.0,102600.0,1.00851814]
[1737612565565,0.0001424,102610.0,102600.0,0.8991044]
[1737612565887,0.0001424,102610.0,102600.0,1.00851814]
[1737612566098,0.0001424,102610.0,102600.0,0.8991044]
[1737612566360,0.0001424,102610.0,102600.0,1.00851814]
[1737612566777,0.0001424,102610.0,102600.0,0.8991044]
[1737612567431,0.0001424,102610.0,102600.0,0.6477834]
[1737612567643,0.0001424,102610.0,102600.0,1.9011684]
[1737612567851,0.0001424,102610.0,102600.0,1.8886784]
[1737612568272,0.0001424,102610.0,102600.0,1.8171114]
[1737612568480,0.0001424,102610.0,102600.0,1.8671114]
[1737612568681,0.0001424,102610.0,102600.0,1.8171114]
[1737612568887,0.0001424,102610.0,102600.0,1.8026184]
[1737612569510,0.0001424,102610.0,102600.0,1.8526184]
[1737612572610,0.0001424,102610.0,102600.0,1.8026184]
[1737612573221,0.0001424,102610.0,102600.0,1.96203214]
[1737612573971,0.0001424,102610.0,102600.0,1.8526184]
[1737612574198,0.0001424,102610.0,102600.0,1.96203214]
[1737612575931,0.0001424,102610.0,102600.0,1.8526184]
[1737612576150,0.0001424,102610.0,102600.0,1.98145534]
[1737612578011,0.0001424,102610.0,102600.0,1.8220416]
[1737612578257,0.0001424,102610.0,102600.0,1.8026184]
[1737612578855,0.0001424,102610.0,102600.0,1.8028984]
[1737612590001,0.0001424,102610.0,102600.0,0.5980634]
[1737612590179,0.0150006,102610.0,102600.0,0.35664966]
[1737612592869,0.0150006,102610.0,102600.0,0.4660634]
[1737612593084,0.0150006,102610.0,102600.0,0.9774344]
[1737612593301,0.0150006,102610.0,102600.0,0.8475224]
[1737612593838,0.0150006,102610.0,102600.0,0.8976224]
[1737612594224,0.0150006,102610.0,102600.0,0.8843134]
[1737612595848,0.0150006,102610.0,102600.0,0.5161634]
[1737612596757,0.0150006,102610.0,102600.0,0.7959334]
[1737612598172,0.0150006,102610.0,102600.0,0.5161634]
[1737612598372,0.0150006,102610.0,102600.0,0.6333014]
[1737612598661,0.0150006,102610.0,102600.0,0.5161634]
[1737612599473,0.0150006,102610.0,102600.0,0.40674966]
[1737612603260,0.0150006,102610.0,102600.0,0.5161634]
[1737612603763,0.0150006,102610.0,102600.0,0.47851122]
[1737612607466,0.0150006,102610.0,102600.0,0.40674966]
[1737612608787,0.0150006,102610.0,102600.0,0.47851122]
[1737612609003,0.0150006,102610.0,102600.0,0.40674966]
[1737612609214,0.0150006,102610.0,102600.0,0.47851122]
[1737612609432,0.0150006,102610.0,102600.0,0.40674966]
[1737612609643,0.0150006,102610.0,102600.0,0.47851122]
[1737612618726,0.0150006,102610.0,102600.0,0.40674966]
[1737612619074,0.0150006,102610.0,102600.0,0.47851122]
[1737612619453,0.0150006,102610.0,102600.0,0.47351122]
[1737612619659,0.0150006,102610.0,102600.0,0.47640687]
[1737612621202,0.0001424,102610.0,102600.0,0.47640687]
[1737612621423,4e-07,102610.0,102600.0,0.75246964]
[1737612621641,4e-07,102610.0,102600.0,0.8242312]
[1737612621898,4e-07,102610.0,102600.0,0.829373]
[1737612622103,4e-07,102610.0,102600.0,0.82967225]
[1737612622319,4e-07,102610.0,102600.0,0.80577104]
[1737612627477,4e-07,102610.0,102600.0,0.8257096]
[1737612631354,8e-07,102630.0,102620.0,0.180746]
[1737612631559,8e-07,102630.0,102620.0,0.46969056]
[1737612631760,8e-07,102630.0,102620.0,0.4723294]
[1737612632177,8e-07,102630.0,102620.0,0.59409096]
[1737612632379,2e-07,102640.0,102630.0,2.05879812]
[1737612632584,2e-07,102640.0,102630.0,0.57521594]
[1737612633074,2e-07,102640.0,102630.0,0.62521594]
[1737612633474,5e-07,102650.0,102640.0,0.59311168]
[1737612633682,5e-07,102650.0,102640.0,2.41640641]
[1737612633892,5e-07,102650.0,102640.0,0.62230321]
[1737612634271,5e-07,102650.0,102640.0,0.69406477]
[1737612634718,5e-07,102650.0,102640.0,0.62230321]
[1737612635685,5e-07,102650.0,102640.0,0.58800957]
[1737612638176,5e-07,102650.0,102640.0,0.60775632]
[1737612638587,5e-07,102650.0,102640.0,0.61761628]
[1737612645383,5e-07,102650.0,102640.0,0.62625628]
[1737612647042,5e-07,102650.0,102640.0,0.74062756]
[1737612647339,5e-07,102650.0,102640.0,0.68139808]
[1737612648762,5e-07,102650.0,102640.0,0.62625628]
[1737612649191,5e-07,102650.0,102640.0,0.62915628]
[1737612650304,5e-07,102650.0,102640.0,0.34585628]
[1737612650517,5e-07,102650.0,102640.0,0.32610953]
[1737612650912,5e-07,102650.0,102640.0,0.47595958]
[1737612654905,5e-07,102650.0,102640.0,0.53110138]
[1737612655059,5e-07,102650.0,102640.0,0.63710259]
[1737612655467,5e-07,102650.0,102640.0,0.61320138]
[1737612656541,5e-07,102650.0,102640.0,0.61350042]
[1737612658802,5e-07,102650.0,102640.0,0.60835862]
[1737612659210,5e-07,102650.0,102640.0,0.55835862]
[1737612659388,5e-07,102650.0,102640.0,0.65845862]
[1737612660187,5e-07,102650.0,102640.0,0.57635862]
[1737612665290,5e-07,102650.0,102640.0,0.66340042]
[1737612666692,5e-07,102650.0,102640.0,0.69097912]
[1737612667168,5e-07,102650.0,102640.0,0.87370981]
[1737612667999,0.0001425,102700.0,102690.0,0.24738]
[1737612668256,0.0002928,102700.0,102690.0,2.07430342]
[1737612669244,0.0002928,102700.0,102690.0,2.07944522]
[1737612669470,8e-07,102700.0,102690.0,2.07944522]
[1737612669675,8e-07,102700.0,102690.0,0.78440643]
[1737612669888,8e-07,102700.0,102690.0,0.83502735]
[1737612670304,8e-07,102700.0,102690.0,0.93502735]
[1737612670494,8e-07,102700.0,102690.0,0.83502735]
[1737612671921,0.0090505,102720.0,102710.0,0.1525028]
[1737612672135,5e-07,102720.0,102710.0,2.22089116]
[1737612672509,5e-07,102720.0,102710.0,0.59251292]
[1737612673867,0.0001424,102740.0,102730.0,0.35657148]
[1737612673868,5.423e-05,102740.0,102730.0,0.35657148]
[1737612674103,0.00020447,102740.0,102730.0,0.75062477]
[1737612674347,0.00020447,102740.0,102730.0,0.75385121]
[1737612675474,0.00020447,102740.0,102730.0,0.76297121]
[1737612676827,0.00020447,102740.0,102730.0,0.77263515]
[1737612678443,0.0911665,102750.0,102740.0,0.097333]
[1737612678617,0.09166721,102750.0,102740.0,1.40126977]
[1737612678825,0.09166721,102750.0,102740.0,1.4044939]
[1737612679028,0.09166721,102750.0,102740.0,1.3926569]
[1737612679233,0.09166721,102750.0,102740.0,1.1967779]
[1737612679443,0.13866721,102750.0,102740.0,0.19790442]
[1737612680212,0.13866721,102750.0,102740.0,0.3071339]
[1737612681371,0.12380901,102750.0,102740.0,0.8316659]
[1737612681576,0.13866721,102750.0,102740.0,0.8407859]
[1737612683156,0.09166721,102750.0,102740.0,0.8407859]
[1737612685630,0.01535891,102750.0,102740.0,0.9907859]
[1737612686266,0.01535891,102750.0,102740.0,1.0408859]
[1737612686788,0.01535891,102750.0,102740.0,1.0408459]
[1737612686998,0.00050071,102750.0,102740.0,1.15007538]
[1737612687207,0.00050071,102750.0,102740.0,1.0408459]
[1737612687427,0.00050071,102750.0,102740.0,1.05064916]
[1737612688310,0.00050071,102750.0,102740.0,1.21102044]
[1737612688514,0.00050071,102750.0,102740.0,1.20587864]
[1737612688725,0.00050071,102750.0,102740.0,1.21102044]
[1737612690976,0.00050071,102750.0,102740.0,0.86773916]
[1737612691231,0.00050071,102750.0,102740.0,0.78261716]
[1737612691441,0.00064301,102750.0,102740.0,0.99170964]
[1737612691699,1e-08,102750.0,102740.0,0.99685144]
[1737612691898,1e-08,102750.0,102740.0,0.80576844]
[1737612692309,1e-08,102750.0,102740.0,0.82876844]
[1737612692512,1e-08,102750.0,102740.0,0.80576844]
[1737612692812,1e-08,102750.0,102740.0,0.75576844]
[1737612693023,1e-08,102750.0,102740.0,0.80062664]
[1737612693233,1e-08,102750.0,102740.0,0.80576844]
[1737612693652,1e-08,102750.0,102740.0,0.75576844]
[1737612693859,1e-08,102750.0,102740.0,0.80062664]
[1737612694286,1e-08,102750.0,102740.0,0.75062664]
[1737612694701,1e-08,102750.0,102740.0,0.80062664]
[1737612694914,1e-08,102750.0,102740.0,0.75062664]
[1737612696217,1e-08,102750.0,102740.0,0.80062664]
[1737612697147,1e-08,102750.0,102740.0,0.75062664]
[1737612698092,1e-08,102750.0,102740.0,0.59539716]
[1737612698296,1e-08,102750.0,102740.0,0.70462664]
[1737612698527,1e-08,102750.0,102740.0,0.51699716]
[1737612699016,0.0975177,102760.0,102750.0,0.37946899]
[1737612699253,0.0975177,102760.0,102750.0,0.49573739]
[1737612699473,0.0975177,102760.0,102750.0,0.35719339]
[1737612700057,0.0975177,102760.0,102750.0,0.36791339]
[1737612700655,0.0975177,102760.0,102750.0,0.25868391]
[1737612700857,0.0826595,102760.0,102750.0,0.25868391]
[1737612701057,0.0826595,102760.0,102750.0,0.51791339]
[1737612702849,0.0826595,102760.0,102750.0,0.39796391]
[1737612703842,0.0826595,102760.0,102750.0,0.24796391]
[1737612704204,0.1323595,102760.0,102750.0,0.24796391]
[1737612708444,0.1323595,102760.0,102750.0,0.39796391]
[1737612708646,0.13310197,102760.0,102750.0,0.39796391]
[1737612709906,0.23041597,102760.0,102750.0,0.39796391]
[1737612710121,0.1323595,102760.0,102750.0,0.39796391]
[1737612710332,0.13310197,102760.0,102750.0,0.39796391]
[1737612711163,0.1323595,102760.0,102750.0,0.39796391]
[1737612714478,0.1323595,102760.0,102750.0,0.39826274]